fUSD/lending_fUSD_20260221
["ID","MTS","AMOUNT","RATE_DAILY","PERIOD"]
[406302548,1771701072076,-332.276804,0.00045075,120]
[406302549,1771701072085,-54217.41544364,0.00045075,10]
[406302550,1771701072097,-438.92879359,0.00045075,10]
[406302551,1771701072108,-646.0500007,0.00045075,10]
[406302552,1771701072121,-5449.19201642,0.00045075,10]
[406302553,1771701072510,2617.6288,0.00012898,2]
[406302554,1771701072570,300.0,0.00014188,30]
[406302555,1771701092030,4353.04854523,0.00012898,2]
[406302556,1771701092051,9527.15955477,0.00012898,2]
[406302557,1771701106586,472.85044523,0.00012898,2]
[406302558,1771701106609,10000.01,0.00012898,2]
[406302559,1771701106632,10000.01,0.00012898,2]
[406302560,1771701106654,10000.01,0.00012898,2]
[406302561,1771701106678,10000.01,0.00012898,2]
[406302562,1771701106707,10000.01,0.00012898,2]
[406302563,1771701106732,10000.01,0.00012898,2]
[406302564,1771701106756,10000.01,0.00012898,2]
[406302565,1771701106780,10000.01,0.00012898,2]
[406302566,1771701106802,10000.01,0.00012898,2]
[406302567,1771701121594,300.0,0.00012897,2]
[406302568,1771701123173,217.0,0.00012897,2]
[406302569,1771701142373,500.0,0.000108,2]
[406302570,1771701143002,500.0,0.000108,2]
[406302571,1771701143034,500.0,0.000108,2]
[406302572,1771701143062,500.0,0.000108,2]
[406302573,1771701143406,923.91,0.000108,2]
[406302574,1771701143472,600.0,0.000108,2]
[406302575,1771701143632,500.0,0.000108,2]
[406302576,1771701144234,500.0,0.000108,2]
[406302577,1771701144771,500.0,0.000108,2]
[406302578,1771701145223,500.0,0.000108,2]
[406302579,1771701145703,921.08922229,0.000108,2]
[406302580,1771701151341,500.0,0.000108,2]
[406302581,1771701151809,929.88352404,0.000108,2]
[406302582,1771701152187,500.0,0.000108,2]
[406302583,1771701152238,798.03,0.000108,2]
[406302584,1771701152652,310.09725367,0.000108,2]
[406302585,1771701152674,189.90274633,0.000108,2]
[406302586,1771701153125,500.0,0.000108,2]
[406302587,1771701153185,2047.73453208,0.00012798,2]
[406302588,1771701153623,500.0,0.000108,2]
[406302589,1771701154106,574.02385786,0.000108,2]
[406302590,1771701156470,859.67031167,0.000108,2]
[406302591,1771701237425,200.0,0.000126,4]
[406302592,1771701239512,500.0,0.000127,4]
[406302593,1771701241606,800.0,0.000128,4]
[406302594,1771701246770,3450.89858013,0.00012888,2]
[406302595,1771701262168,1018.43216429,0.00012897,3]
[406302596,1771701262203,1018.43216429,0.00012897,3]
[406302597,1771701262231,1018.43216429,0.00012897,3]
[406302598,1771701262257,1018.43216426,0.00012897,3]
[406302599,1771701262289,1018.43216429,0.00012897,3]
[406302600,1771701262334,1018.43216429,0.00012897,3]
[406302601,1771701262390,438.51843416,0.00012897,3]
[406302602,1771701262410,579.91373013,0.00012897,3]
[406302603,1771701262441,1018.43216429,0.00012897,3]
[406302604,1771701301217,1200.0,0.00012897,2]
[406302605,1771701302840,150.0,0.00012897,2]
[406302606,1771701305007,364.29909649,0.00012798,2]
[406302607,1771701359754,181.11870274,0.00012897,2]
[406302608,1771701359855,500.0,0.00012897,2]
[406302609,1771701361697,246.12536612,0.00012897,2]
[406302610,1771701361728,300.0,0.00012897,2]
[406302611,1771701366244,500.0,0.00012897,2]
[406302612,1771701366289,500.0,0.00012897,2]
[406302613,1771701366324,500.0,0.00012897,2]
[406302614,1771701366358,500.0,0.00012897,2]
[406302615,1771701366389,500.0,0.00012897,2]
[406302616,1771701366462,500.0,0.00012897,2]
[406302617,1771701366492,500.0,0.00012897,2]
[406302618,1771701366523,500.0,0.00012897,2]
[406302619,1771701366565,500.0,0.00012897,2]
[406302620,1771701366595,500.0,0.00012897,2]
[406302621,1771701366637,460.12094023,0.00012897,2]
[406302622,1771701366661,39.87905977,0.00012897,2]
[406302623,1771701366706,500.0,0.00012897,2]
[406302624,1771701366740,500.0,0.00012897,2]
[406302625,1771701366799,500.0,0.00012897,2]
[406302626,1771701366850,500.0,0.00012897,2]
[406302627,1771701366902,500.0,0.00012897,2]
[406302628,1771701366963,483.236708,0.00012897,2]
[406302629,1771701367017,500.0,0.00012897,2]
[406302630,1771701403985,493.1988,0.00012798,2]
[406302631,1771701407918,4041.7245106,0.00012898,2]
[406302632,1771701409821,5465.0866894,0.00012798,2]
[406302633,1771701409843,10000.01,0.00012798,2]
[406302634,1771701409868,10000.01,0.00012798,2]
[406302635,1771701410158,-2604.3746894,0.00012798,2]
[406302636,1771701427010,317.14391739,0.00012798,2]
[406302637,1771701436554,500.0,0.000108,2]
[406302638,1771701436741,500.0,0.000108,2]
[406302639,1771701437037,800.0,0.000108,2]
[406302640,1771701437178,500.0,0.000108,2]
[406302641,1771701437674,500.0,0.000108,2]
[406302642,1771701438686,500.0,0.000108,2]
[406302643,1771701439185,500.0,0.000108,2]
[406302644,1771701442542,500.0,0.000108,2]
[406302645,1771701443968,500.0,0.000108,2]
[406302646,1771701444437,500.0,0.000108,2]
[406302647,1771701445369,500.0,0.000108,2]
[406302648,1771701445855,500.0,0.000108,2]
[406302649,1771701446389,500.0,0.000108,2]
[406302650,1771701446906,500.0,0.000108,2]
[406302651,1771701447418,500.0,0.000108,2]
[406302652,1771701448281,500.0,0.000108,2]
[406302653,1771701450412,638.299759,0.000108,2]
[406302654,1771701457122,500.0,0.000126,4]
[406302655,1771701459207,1000.0,0.000127,4]
[406302656,1771701467191,244.97364826,0.00012797,2]
[406302657,1771701482454,150.0,0.00012797,2]
[406302658,1771701521640,1966.73659274,0.00012698,2]
[406302659,1771701521663,6222.75214454,0.00012698,2]
[406302660,1771701539326,1842.96107889,0.00012698,2]
[406302661,1771701541641,300.0,0.00012797,2]
[406302662,1771701557092,389.1197997,0.00012698,2]
[406302663,1771701565285,522.28775628,0.00012797,2]
[406302664,1771701565314,180.33155209,0.00012797,2]
[406302665,1771701584939,344.76617155,0.00012698,2]
[406302666,1771701587418,345.19030838,0.00012698,2]
[406302667,1771701589352,-300.0,0.00012798,2]
[406302668,1771701601200,1200.0,0.00012797,2]
[406302669,1771701601410,300.0,0.00012797,2]
[406302670,1771701647770,500.0,0.00012797,2]
[406302671,1771701647804,500.0,0.00012797,2]
[406302672,1771701647846,500.0,0.00012797,2]
[406302673,1771701647899,500.0,0.00012797,2]
[406302674,1771701647934,500.0,0.00012797,2]
[406302675,1771701647969,500.0,0.00012797,2]
[406302676,1771701648010,500.0,0.00012797,2]
[406302677,1771701648042,500.0,0.00012797,2]
[406302678,1771701648076,500.0,0.00012797,2]
[406302679,1771701648107,500.0,0.00012797,2]
[406302680,1771701648138,500.0,0.00012797,2]
[406302681,1771701648173,500.0,0.00012797,2]
[406302682,1771701648216,500.0,0.00012797,2]
[406302683,1771701648289,500.0,0.00012797,2]
[406302684,1771701648324,107.4342117,0.00012797,2]
[406302685,1771701648347,213.45535071,0.00012797,2]
[406302686,1771701648491,500.0,0.00012797,2]
[406302687,1771701648538,500.0,0.00012797,2]
[406302688,1771701648592,500.0,0.00012797,2]
[406302689,1771701648641,500.0,0.00012797,2]
[406302690,1771701648694,500.0,0.00012797,2]
[406302691,1771701661347,300.0,0.00012797,2]
[406302692,1771701661852,150.0,0.00012797,2]
[406302693,1771701687598,259.4131998,0.00012698,2]
[406302694,1771701697072,1804.054,0.00012542,2]
[406302695,1771701697109,170.871,0.00012542,2]
[406302696,1771701699833,398.66077474,0.00012698,2]
[406302697,1771701707554,351.3765675,0.00012698,2]
[406302698,1771701712503,500.0,0.00012797,2]
[406302699,1771701712540,500.0,0.00012797,2]
[406302700,1771701712573,500.0,0.00012797,2]
[406302701,1771701712612,500.0,0.00012797,2]
[406302702,1771701712645,500.0,0.00012797,2]
[406302703,1771701712676,500.0,0.00012797,2]
[406302704,1771701712705,500.0,0.00012797,2]
[406302705,1771701712735,352.17910725,0.00012797,2]
[406302706,1771701712759,147.82089275,0.00012797,2]
[406302707,1771701712794,500.0,0.00012797,2]
[406302708,1771701712824,500.0,0.00012797,2]
[406302709,1771701712858,500.0,0.00012797,2]
[406302710,1771701721550,300.0,0.00012797,2]
[406302711,1771701722918,8052.18910725,0.00012698,2]
[406302712,1771701722944,10000.01,0.00012698,2]
[406302713,1771701722969,10000.01,0.00012698,2]
[406302714,1771701722993,10000.01,0.00012698,2]
[406302715,1771701723017,10000.01,0.00012698,2]
[406302716,1771701723041,10000.01,0.00012698,2]
[406302717,1771701723066,10000.01,0.00012698,2]
[406302718,1771701723091,10000.01,0.00012698,2]
[406302719,1771701723114,10000.01,0.00012698,2]
[406302720,1771701736179,500.0,0.000108,2]
[406302721,1771701736670,500.0,0.000108,2]
[406302722,1771701745006,511.03700087,0.000108,2]
[406302723,1771701745141,500.0,0.000108,2]
[406302724,1771701745644,800.0,0.000108,2]
[406302725,1771701749166,500.0,0.000108,2]
[406302726,1771701749410,500.0,0.000108,2]
[406302727,1771701751866,500.0,0.00012697,2]
[406302728,1771701751942,341.93038351,0.00012697,2]
[406302729,1771701751984,187.83432299,0.00012697,2]
[406302730,1771701754490,500.0,0.00012697,2]
[406302731,1771701754546,500.0,0.00012697,2]
[406302732,1771701754588,500.0,0.00012697,2]
[406302733,1771701754639,500.0,0.00012697,2]
[406302734,1771701754707,282.08895624,0.00012697,2]
[406302735,1771701754770,500.0,0.00012697,2]
[406302736,1771701756286,199.46586612,0.00012697,2]
[406302737,1771701757929,500.0,0.000108,2]
[406302738,1771701758462,500.0,0.000108,2]
[406302739,1771701758945,500.0,0.000108,2]
[406302740,1771701759430,500.0,0.000108,2]
[406302741,1771701759900,500.0,0.000108,2]
[406302742,1771701760387,500.0,0.000108,2]
[406302743,1771701760893,177.65347027,0.000108,2]
[406302744,1771701760920,322.34652973,0.000108,2]
[406302745,1771701761440,500.0,0.000108,2]
[406302746,1771701775720,500.0,0.00012697,2]
[406302747,1771701775767,500.0,0.00012697,2]
[406302748,1771701781737,300.0,0.00012697,2]
[406302749,1771701783913,1843.23865313,0.00012697,2]
[406302750,1771701792965,500.0,0.00012697,2]
[406302751,1771701793285,500.0,0.00012697,2]
[406302752,1771701817886,291.40248084,0.00012598,2]
[406302753,1771701827789,234.251045,0.00012598,2]
[406302754,1771701841276,300.0,0.00012697,2]
[406302755,1771701841910,150.0,0.00012697,2]
[406302756,1771701847631,383.401351,0.00012256,2]
[406302757,1771701866249,500.0,0.00012697,2]
[406302758,1771701866307,500.0,0.00012697,2]
[406302759,1771701866375,500.0,0.00012697,2]
[406302760,1771701866410,500.0,0.00012697,2]
[406302761,1771701866468,433.20889563,0.00012697,2]
[406302762,1771701866579,500.0,0.00012697,2]
[406302763,1771701870275,301.67040008,0.00012598,2]
[406302764,1771701887348,440.49064459,0.00012697,2]
[406302765,1771701887372,59.50935541,0.00012697,2]
[406302766,1771701887411,500.0,0.00012697,2]
[406302767,1771701901472,300.0,0.00012697,2]
[406302768,1771701903258,1200.0,0.00012697,2]
[406302769,1771701911022,500.0,0.00012697,2]
[406302770,1771701911070,500.0,0.00012697,2]
[406302771,1771701922204,500.0,0.00012697,2]
[406302772,1771701925563,3141.76350773,0.00012598,2]
[406302773,1771701930862,589.35126845,0.00012697,2]
[406302774,1771701935833,423.8386,0.00012598,2]
[406302775,1771701940004,200.0,0.00012697,2]
[406302776,1771701948032,156.16736332,0.00012598,2]
[406302777,1771701948150,194.26832056,0.00012598,2]
[406302778,1771701960778,1735.11158453,8e-05,2]
[406302779,1771701960804,6244.98245964,8e-05,2]
[406302780,1771701991193,1278.1228,0.00012598,2]
[406302781,1771701995707,500.0,0.000102,2]
[406302782,1771702001590,261.81596152,0.00012671,2]
[406302783,1771702036700,500.0,0.000108,2]
[406302784,1771702037203,727.91077771,0.000108,2]
[406302785,1771702050383,500.0,0.000108,2]
[406302786,1771702050841,702.70112286,0.000108,2]
[406302787,1771702051876,500.0,0.000108,2]
[406302788,1771702052361,500.0,0.000108,2]
[406302789,1771702052861,500.0,0.000108,2]
[406302790,1771702053364,500.0,0.000108,2]
[406302791,1771702053650,569.39809943,0.000108,2]
[406302792,1771702053674,286.19100065,0.000108,2]
[406302793,1771702053854,500.0,0.000108,2]
[406302794,1771702053886,500.0,0.000108,2]
[406302795,1771702054349,500.0,0.000108,2]
[406302796,1771702054825,500.0,0.000108,2]
[406302797,1771702055368,500.0,0.000108,2]
[406302798,1771702055761,700.0,0.000108,2]
[406302799,1771702055989,900.0,0.000108,2]
[406302800,1771702064166,-7677.94998862,0.00012598,2]
[406302801,1771702064264,-3664.46316806,0.00012598,2]
[406302802,1771702068178,513.329297,0.000125,2]
[406302803,1771702082010,300.0,0.00012597,2]
[406302804,1771702093198,691.56977186,0.00012498,2]
[406302805,1771702109819,1045.0,0.00012597,2]
[406302806,1771702141360,121.18459502,0.00012597,2]
[406302807,1771702141383,178.81540498,0.00012597,2]
[406302808,1771702151510,285.22435436,0.00012498,2]
[406302811,1771702166459,-10000.0,0.00012598,2]
[406302812,1771702168425,-10000.0,0.00012598,2]
[406302813,1771702169497,-10000.0,0.00012598,2]
[406302814,1771702171234,-10000.0,0.00012598,2]
[406302815,1771702172360,-10000.0,0.00012598,2]
[406302816,1771702173428,-10000.0,0.00012598,2]
[406302817,1771702183722,236.14437272,0.00012498,2]
[406302818,1771702188386,615.03134564,0.00012498,2]
[406302819,1771702201627,1200.0,0.00012597,2]
[406302820,1771702201668,154.0,0.00012597,2]
[406302821,1771702202528,150.0,0.00012597,2]
[406302822,1771702204281,253.0,0.00012598,2]
[406302823,1771702217578,-160.0,0.00012598,2]
[406302824,1771702217607,-171.0,0.00012598,2]
[406302825,1771702217634,-150.0,0.00012598,2]
[406302826,1771702217706,155.9462674,0.00012588,2]
[406302827,1771702217868,-3138.76459102,0.00012598,2]
[406302828,1771702218127,2238.49271131,0.00012498,2]
[406302836,1771702231895,-16356.92884882,0.00012598,2]
[406302837,1771702231953,-227877.84798132,0.00012598,2]
[406302838,1771702231964,-8182.88060572,0.00012598,2]
[406302839,1771702231975,-6822.60738732,0.00012598,2]
[406302840,1771702231986,-784.61416251,0.00012598,2]
[406302842,1771702232178,-1917.58029272,0.00012598,2]
[406302848,1771702232230,-2200.0,0.00012598,2]
[406302850,1771702232242,-1019.13598688,0.00012598,2]
[406302852,1771702232252,-712.57717035,0.00012598,2]
[406302864,1771702237886,-326.7999999,0.00012598,2]
[406302865,1771702237897,-466.2000001,0.00012598,2]
[406302866,1771702237908,-333.3551832,0.00012598,2]
[406302867,1771702238052,-1500920.72418981,0.00012598,2]
[406302868,1771702238064,-1905.05167747,0.00012598,2]
[406302893,1771702240161,-1667034.93192286,0.00012598,2]
[406302894,1771702240170,-2500.0,0.00012598,2]
[406302895,1771702240180,-1000.0,0.000126,4]
[406302896,1771702240190,-200.0,0.000126,4]
[406302897,1771702240200,-259.1,0.00012671,2]
[406302898,1771702240209,-2000.0,0.000127,4]
[406302899,1771702240219,-400.0,0.000127,4]
[406302900,1771702240228,-1000.0,0.00012797,2]
[406302901,1771702240238,-1000.0,0.00012797,2]
[406302902,1771702240431,-1000.0,0.00012797,2]
[406302903,1771702240442,-610.49260716,0.00012797,2]
[406302904,1771702240451,-212.71,0.00012798,2]
[406302905,1771702240461,-200.0,0.00012798,2]
[406302906,1771702240471,-500.0,0.00012798,2]
[406302907,1771702240481,-500.0,0.00012798,2]
[406302908,1771702240492,-200.0,0.00012798,2]
[406302909,1771702240501,-151.0,0.00012798,2]
[406302910,1771702240511,-151.0,0.00012798,2]
[406302911,1771702240522,-151.0,0.00012798,2]
[406302912,1771702240531,-151.0,0.00012798,2]
[406302913,1771702240540,-151.0,0.00012798,2]
[406302914,1771702240550,-151.0,0.00012798,2]
[406302915,1771702240559,-151.0,0.00012798,2]
[406302916,1771702240568,-151.0,0.00012798,2]
[406302917,1771702240577,-151.0,0.00012798,2]
[406302918,1771702240586,-151.0,0.00012798,2]
[406302919,1771702240595,-151.0,0.00012798,2]
[406302920,1771702240605,-500.0,0.00012798,2]
[406302921,1771702240616,-500.0,0.00012798,2]
[406302922,1771702240626,-500.0,0.00012798,2]
[406302923,1771702240636,-500.0,0.00012798,2]
[406302924,1771702240646,-500.0,0.00012798,2]
[406302925,1771702240655,-500.0,0.00012798,2]
[406302926,1771702240664,-500.0,0.00012798,2]
[406302927,1771702240673,-475.19116023,0.00012798,2]
[406302928,1771702240682,-151.0,0.00012798,2]
[406302929,1771702240691,-151.0,0.00012798,2]
[406302930,1771702240701,-151.0,0.00012798,2]
[406302931,1771702240712,-151.0,0.00012798,2]
[406302932,1771702240721,-151.0,0.00012798,2]
[406302933,1771702240730,-151.0,0.00012798,2]
[406302934,1771702240739,-151.0,0.00012798,2]
[406302935,1771702240748,-151.0,0.00012798,2]
[406302936,1771702240757,-151.0,0.00012798,2]
[406302937,1771702240766,-151.0,0.00012798,2]
[406302938,1771702240775,-151.0,0.00012798,2]
[406302939,1771702240784,-151.0,0.00012798,2]
[406302940,1771702240793,-151.0,0.00012798,2]
[406302941,1771702240802,-151.0,0.00012798,2]
[406302942,1771702240811,-151.0,0.00012798,2]
[406302943,1771702240820,-151.0,0.00012798,2]
[406302944,1771702240829,-151.0,0.00012798,2]
[406302945,1771702240838,-151.0,0.00012798,2]
[406302946,1771702240847,-151.0,0.00012798,2]
[406302947,1771702240856,-151.0,0.00012798,2]
[406302948,1771702240865,-4491.2606212,0.00012798,2]
[406302949,1771702240874,-500.0,0.00012798,2]
[406302950,1771702240884,-500.0,0.00012798,2]
[406302951,1771702240893,-3100.0,0.000128,4]
[406302952,1771702240901,-600.0,0.000128,4]
[406302953,1771702240910,-1000.0,0.00012898,2]
[406302954,1771702240919,-10000.0,0.00012898,2]
[406302955,1771702240928,-246.88,0.000129,2]
[406302956,1771702240937,-4100.0,0.000129,4]
[406302957,1771702240946,-800.0,0.000129,4]
[406302958,1771702240955,-500.0,0.00012901,2]
[406302959,1771702240964,-212.71,0.00013072,2]
[406302960,1771702240973,-500.0,0.00013072,2]
[406302961,1771702240981,-3141.76350764,0.00013196,2]
[406302962,1771702240990,-11342.4131566,0.00013196,2]
[406302963,1771702241002,-212.71,0.00013346,2]
[406302964,1771702241011,-200.0,0.00013346,2]
[406302965,1771702241020,-500.0,0.00013346,2]
[406302966,1771702241028,-442.378416,0.00013478,2]
[406302967,1771702241038,-1177.9097875,0.0001358,2]
[406302968,1771702241047,-212.71,0.0001362,2]
[406302969,1771702241057,-500.0,0.00013698,2]
[406302970,1771702241066,-500.0,0.00013698,2]
[406302971,1771702241078,-500.0,0.00013698,2]
[406302972,1771702241088,-500.0,0.00013698,2]
[406302973,1771702241097,-500.0,0.00013698,2]
[406302974,1771702241107,-500.0,0.00013698,2]
[406302975,1771702241116,-500.0,0.00013698,2]
[406302976,1771702241125,-500.0,0.00013698,2]
[406302977,1771702241135,-500.0,0.00013698,2]
[406302978,1771702241144,-500.0,0.00013698,2]
[406302979,1771702241153,-500.0,0.00013698,2]
[406302980,1771702241162,-500.0,0.00013698,2]
[406302981,1771702241171,-500.0,0.00013698,2]
[406302982,1771702241180,-500.0,0.00013698,2]
[406302983,1771702241190,-507.84698515,0.00013698,2]
[406302984,1771702241200,-500.0,0.00013698,2]
[406302985,1771702241209,-500.0,0.00013698,2]
[406302986,1771702241220,-500.0,0.00013698,2]
[406302987,1771702241229,-500.0,0.00013698,2]
[406302988,1771702241240,-500.0,0.00013698,2]
[406302989,1771702241249,-500.0,0.00013698,2]
[406302990,1771702241258,-500.0,0.00013698,2]
[406302991,1771702241268,-500.0,0.00013698,2]
[406302992,1771702241278,-500.0,0.00013698,2]
[406302993,1771702241287,-500.0,0.00013698,2]
[406302994,1771702241296,-500.0,0.00013698,2]
[406302995,1771702241305,-500.0,0.00013698,2]
[406302996,1771702241314,-500.0,0.00013698,2]
[406302997,1771702241323,-500.0,0.00013698,2]
[406302998,1771702241332,-576.69,0.00013698,2]
[406302999,1771702241342,-500.0,0.00013698,2]
[406303000,1771702241351,-500.0,0.00013698,2]
[406303001,1771702241360,-500.0,0.00013698,2]
[406303002,1771702241370,-529.62531176,0.00013698,2]
[406303003,1771702241379,-500.0,0.00013698,2]
[406303004,1771702241388,-500.0,0.00013698,2]
[406303005,1771702241397,-3141.76350764,0.00013793,2]
[406303006,1771702241407,-11342.4131566,0.00013793,2]
[406303007,1771702241416,-1680.0,0.00013857,2]
[406303008,1771702241425,-212.76,0.00013894,2]
[406303009,1771702241436,-500.0,0.00013894,2]
[406303010,1771702241446,-250.0,0.00013967,2]
[406303011,1771702241455,-224.20324959,0.00013967,2]
[406303012,1771702241466,-600.0,0.00013967,2]
[406303013,1771702241478,-2500.0,0.00013968,2]
[406303014,1771702241487,-2500.0,0.00013968,2]
[406303015,1771702241496,-2500.0,0.00013968,2]
[406303016,1771702241505,-2500.0,0.00013968,2]
[406303017,1771702241514,-2500.0,0.00013968,2]
[406303018,1771702241524,-195.0,0.00013968,2]
[406303019,1771702241533,-195.0,0.00013968,2]
[406303020,1771702241542,-195.0,0.00013968,2]
[406303021,1771702241552,-195.0,0.00013968,2]
[406303022,1771702241561,-195.0,0.00013968,2]
[406303023,1771702241570,-500.0,0.00014,2]
[406303024,1771702241579,-501.52973822,0.00014,2]
[406303025,1771702241590,-500.0,0.00014,2]
[406303026,1771702241599,-500.0,0.00014,2]
[406303027,1771702241609,-500.0,0.00014,2]
[406303028,1771702241618,-500.0,0.00014,2]
[406303029,1771702241627,-500.0,0.00014,2]
[406303030,1771702241636,-500.0,0.00014,2]
[406303031,1771702241646,-500.0,0.00014,2]
[406303032,1771702241655,-500.0,0.00014,2]
[406303033,1771702241665,-500.0,0.00014,2]
[406303034,1771702241675,-500.0,0.00014,2]
[406303035,1771702241685,-500.0,0.00014,2]
[406303036,1771702241695,-500.0,0.00014,2]
[406303037,1771702241705,-500.0,0.00014,2]
[406303038,1771702241714,-519.280484,0.00014,2]
[406303039,1771702241723,-500.0,0.00014,2]
[406303040,1771702241732,-500.0,0.00014,2]
[406303041,1771702241741,-500.0,0.00014,2]
[406303042,1771702241751,-500.0,0.00014,2]
[406303043,1771702241760,-500.0,0.00014,2]
[406303044,1771702241769,-500.0,0.00014,2]
[406303045,1771702241778,-500.0,0.00014,2]
[406303046,1771702241787,-500.0,0.00014,2]
[406303047,1771702241796,-500.0,0.00014,2]
[406303048,1771702241805,-500.0,0.00014,2]
[406303049,1771702241814,-500.0,0.00014,2]
[406303050,1771702241824,-500.0,0.00014,2]
[406303051,1771702241835,-500.0,0.00014,2]
[406303052,1771702241845,-500.0,0.00014,2]
[406303053,1771702241855,-500.0,0.00014,2]
[406303054,1771702241864,-500.0,0.00014,2]
[406303055,1771702241873,-500.0,0.00014,2]
[406303056,1771702241882,-500.0,0.00014,2]
[406303057,1771702241891,-500.0,0.00014,2]
[406303058,1771702241900,-500.0,0.00014,2]
[406303059,1771702241909,-500.0,0.00014,2]
[406303060,1771702241919,-500.0,0.00014,2]
[406303061,1771702241929,-500.0,0.00014,2]
[406303062,1771702241939,-500.0,0.00014,2]
[406303063,1771702241948,-500.0,0.00014,2]
[406303064,1771702241958,-500.0,0.00014,2]
[406303065,1771702241966,-500.0,0.00014,2]
[406303066,1771702241976,-500.0,0.00014,2]
[406303067,1771702241984,-500.0,0.00014,2]
[406303068,1771702241994,-500.0,0.00014,2]
[406303069,1771702242006,-600.0,0.00014,2]
[406303070,1771702242015,-500.0,0.00014,2]
[406303071,1771702242024,-500.0,0.00014,2]
[406303072,1771702242033,-500.0,0.00014,2]
[406303073,1771702242043,-500.0,0.00014,2]
[406303074,1771702242052,-500.0,0.00014,2]
[406303075,1771702242060,-500.0,0.00014,2]
[406303076,1771702242069,-500.0,0.00014,2]
[406303077,1771702242081,-500.0,0.00014,2]
[406303078,1771702242089,-500.0,0.00014,2]
[406303079,1771702242099,-500.0,0.00014,2]
[406303080,1771702242107,-500.0,0.00014,2]
[406303081,1771702242116,-500.0,0.00014,2]
[406303082,1771702242125,-500.0,0.00014,2]
[406303083,1771702242134,-501.03439098,0.00014,2]
[406303084,1771702242143,-506.84662347,0.00014,2]
[406303085,1771702242151,-500.0,0.00014,2]
[406303086,1771702242162,-500.0,0.00014,2]
[406303087,1771702242171,-500.0,0.00014,2]
[406303088,1771702242182,-500.0,0.00014,2]
[406303089,1771702242192,-500.0,0.00014,2]
[406303090,1771702242202,-529.32426043,0.00014,2]
[406303091,1771702242212,-500.0,0.00014,2]
[406303092,1771702242222,-500.0,0.00014,2]
[406303093,1771702242234,-500.0,0.00014,2]
[406303094,1771702242243,-500.0,0.00014,2]
[406303095,1771702242253,-491.60944533,0.00014,2]
[406303096,1771702242262,-500.0,0.00014,2]
[406303097,1771702242271,-500.0,0.00014,2]
[406303098,1771702242280,-500.0,0.00014,2]
[406303099,1771702242290,-500.0,0.00014,2]